fUSD/lending_fUSD_20250616
["ID","MTS","AMOUNT","RATE_DAILY","PERIOD"]
[366136162,1750081843798,-490.0,0.00016438,2]
[366136163,1750081843807,-490.0,0.00016438,2]
[366136164,1750081843816,-490.0,0.00016438,2]
[366136165,1750081843826,-991.62,0.00016438,2]
[366136166,1750081843835,-1335.71,0.00016438,2]
[366136167,1750081843845,-679.7,0.00016438,2]
[366136168,1750081843855,-402.45488728,0.00016438,2]
[366136169,1750081843865,-490.0,0.00016438,2]
[366136170,1750081843875,-490.0,0.00016438,2]
[366136171,1750081843884,-633.32358558,0.00016438,2]
[366136172,1750081843894,-490.0,0.00016438,2]
[366136173,1750081843918,-616.62,0.00016438,2]
[366136174,1750081843928,-490.0,0.00016438,2]
[366136175,1750081843939,-490.0,0.00016438,2]
[366136176,1750081843949,-1095.01,0.00016438,2]
[366136177,1750081843958,-490.0,0.00016438,2]
[366136178,1750081843968,-532.86,0.00016438,2]
[366136179,1750081843978,-507.92,0.00016438,2]
[366136180,1750081843987,-490.0,0.00016438,2]
[366136181,1750081843997,-490.0,0.00016438,2]
[366136182,1750081844007,-490.0,0.00016438,2]
[366136183,1750081844017,-1457.96,0.00016438,2]
[366136184,1750081844027,-490.0,0.00016438,2]
[366136185,1750081844037,-475.55765483,0.00016438,2]
[366136186,1750081844047,-490.0,0.00016438,2]
[366136187,1750081844057,-1452.82,0.00016438,2]
[366136188,1750081844067,-490.0,0.00016438,2]
[366136189,1750081844078,-490.0,0.00016438,2]
[366136190,1750081844088,-490.0,0.00016438,2]
[366136191,1750081844097,-490.0,0.00016438,2]
[366136192,1750081844108,-490.0,0.00016438,2]
[366136193,1750081844118,-1286.67,0.00016438,2]
[366136194,1750081844128,-250.0,0.00016438,2]
[366136195,1750081844138,-490.0,0.00016438,2]
[366136196,1750081844148,-400.78120572,0.00016438,2]
[366136197,1750081844159,-490.0,0.00016438,2]
[366136198,1750081844169,-1915.09,0.00016438,2]
[366136199,1750081844181,-490.0,0.00016438,2]
[366136200,1750081844192,-524.53,0.00016438,2]
[366136201,1750081844202,-490.0,0.00016438,2]
[366136202,1750081844213,-490.0,0.00016438,2]
[366136203,1750081844223,-490.0,0.00016438,2]
[366136204,1750081844233,-490.0,0.00016438,2]
[366136205,1750081844242,-490.0,0.00016438,2]
[366136206,1750081844252,-490.0,0.00016438,2]
[366136207,1750081844262,-1162.62,0.00016438,2]
[366136208,1750081844273,-490.0,0.00016438,2]
[366136209,1750081844283,-490.0,0.00016438,2]
[366136210,1750081844292,-490.0,0.00016438,2]
[366136211,1750081844303,-490.0,0.00016438,2]
[366136212,1750081844313,-1762.93,0.00016438,2]
[366136213,1750081844323,-7245.44,0.00016438,2]
[366136214,1750081844339,-490.0,0.00016438,2]
[366136215,1750081844349,-480.35991438,0.00016438,2]
[366136216,1750081844359,-490.0,0.00016438,2]
[366136217,1750081844371,-490.0,0.00016438,2]
[366136218,1750081844381,-726.59,0.00016438,2]
[366136219,1750081844391,-1618.89,0.00016438,2]
[366136220,1750081844402,-1223.97,0.00016438,2]
[366136221,1750081844413,-490.0,0.00016438,2]
[366136222,1750081844428,-490.0,0.00016438,2]
[366136223,1750081844440,-490.0,0.00016438,2]
[366136224,1750081844450,-909.9,0.00016438,2]
[366136225,1750081844460,-490.0,0.00016438,2]
[366136226,1750081844471,-1015.67,0.00016438,2]
[366136227,1750081844481,-490.0,0.00016438,2]
[366136228,1750081844492,-4376.22,0.00016438,2]
[366136229,1750081844504,-490.0,0.00016438,2]
[366136230,1750081844515,-1649.67,0.00016438,2]
[366136231,1750081844526,-3731.34,0.00016438,2]
[366136232,1750081844537,-823.36,0.00016438,2]
[366136233,1750081844546,-490.0,0.00016438,2]
[366136234,1750081844556,-665.19,0.00016438,2]
[366136235,1750081844566,-490.0,0.00016438,2]
[366136236,1750081844577,-490.0,0.00016438,2]
[366136237,1750081844587,-549.16,0.00016438,2]
[366136238,1750081844599,-490.0,0.00016438,2]
[366136239,1750081844887,-13227.09,0.00016438,2]
[366136240,1750081844898,-7620.97,0.00016438,2]
[366136241,1750081844908,-1793.97,0.00016438,2]
[366136242,1750081844920,-1051.72,0.00016438,2]
[366136243,1750081844930,-490.0,0.00016438,2]
[366136244,1750081844941,-985.9,0.00016438,2]
[366136245,1750081844951,-490.0,0.00016438,2]
[366136246,1750081844962,-490.0,0.00016438,2]
[366136247,1750081844971,-919.48,0.00016438,2]
[366136248,1750081844982,-151.0,0.00016438,2]
[366136249,1750081844992,-2122.29,0.00016438,2]
[366136250,1750081845002,-490.0,0.00016438,2]
[366136251,1750081845012,-481.94041308,0.00016438,2]
[366136252,1750081845023,-817.76,0.00016438,2]
[366136253,1750081845033,-3517.78,0.00016438,2]
[366136254,1750081845043,-3407.17,0.00016438,2]
[366136255,1750081845053,-959.64,0.00016438,2]
[366136256,1750081845063,-490.0,0.00016438,2]
[366136257,1750081845073,-490.0,0.00016438,2]
[366136258,1750081845084,-490.0,0.00016438,2]
[366136259,1750081845094,-530.0,0.00016438,2]
[366136260,1750081845105,-710.52,0.00016438,2]
[366136261,1750081845115,-490.0,0.00016438,2]
[366136262,1750081845125,-490.0,0.00016438,2]
[366136263,1750081845139,-899.12,0.00016438,2]
[366136264,1750081845149,-490.0,0.00016438,2]
[366136265,1750081845159,-1248.91,0.00016438,2]
[366136266,1750081845169,-1232.54,0.00016438,2]
[366136267,1750081845180,-490.0,0.00016438,2]
[366136268,1750081845191,-1322.09,0.00016438,2]
[366136269,1750081845201,-500.0,0.00016438,2]
[366136270,1750081845211,-1057.73,0.00016438,2]
[366136271,1750081845222,-490.0,0.00016438,2]
[366136272,1750081845232,-150.0,0.00016438,2]
[366136273,1750081845242,-500.0,0.00016438,2]
[366136274,1750081845252,-3008.06,0.00016438,2]
[366136275,1750081845263,-201.31927875,0.00016438,2]
[366136276,1750081845272,-150.0,0.00016438,2]
[366136277,1750081845282,-516.26,0.00016438,2]
[366136278,1750081845292,-1604.36,0.00016438,2]
[366136279,1750081845302,-490.0,0.00016438,2]
[366136280,1750081845312,-490.0,0.00016438,2]
[366136281,1750081845322,-741.09,0.00016438,2]
[366136282,1750081845332,-2973.8,0.00016438,2]
[366136283,1750081845343,-490.0,0.00016438,2]
[366136284,1750081845352,-490.0,0.00016438,2]
[366136285,1750081845362,-1171.29,0.00016438,2]
[366136286,1750081845372,-202.07311355,0.00016438,2]
[366136287,1750081845382,-1558.85,0.00016438,2]
[366136288,1750081845392,-1023.71,0.00016438,2]
[366136289,1750081845402,-202.25101604,0.00016438,2]
[366136290,1750081845412,-490.0,0.00016438,2]
[366136291,1750081845424,-784.23,0.00016438,2]
[366136292,1750081845436,-490.0,0.00016438,2]
[366136293,1750081845446,-5308.5,0.00016438,2]
[366136294,1750081845456,-1536.25,0.00016438,2]
[366136295,1750081845466,-809.66,0.00016438,2]
[366136296,1750081845476,-490.0,0.00016438,2]
[366136297,1750081845486,-490.0,0.00016438,2]
[366136298,1750081845496,-1220.54,0.00016438,2]
[366136299,1750081845507,-497.67,0.00016438,2]
[366136300,1750081845517,-2575.74,0.00016438,2]
[366136301,1750081845527,-1048.18,0.00016438,2]
[366136302,1750081845537,-1926.5,0.00016438,2]
[366136303,1750081845547,-381.45678869,0.00016438,2]
[366136304,1750081845559,-625.92,0.00016438,2]
[366136305,1750081845569,-490.0,0.00016438,2]
[366136306,1750081845586,-2306.48,0.00016438,2]
[366136307,1750081845603,-2747.04,0.00016438,2]
[366136308,1750081845615,-913.43,0.00016438,2]
[366136309,1750081845626,-497.35,0.00016438,2]
[366136310,1750081845636,-490.0,0.00016438,2]
[366136311,1750081845648,-1207.23,0.00016438,2]
[366136312,1750081845659,-611.47,0.00016438,2]
[366136313,1750081845670,-150.0,0.00016438,2]
[366136315,1750081845681,-1205.09,0.00016438,2]
[366136316,1750081845692,-490.0,0.00016438,2]
[366136317,1750081845703,-500.0,0.00016438,2]
[366136318,1750081845714,-490.0,0.00016438,2]
[366136319,1750081845724,-5352.88,0.00016438,2]
[366136320,1750081845735,-1258.02,0.00016438,2]
[366136321,1750081845745,-200.0,0.00016438,2]
[366136322,1750081845756,-490.0,0.00016438,2]
[366136323,1750081845767,-490.0,0.00016438,2]
[366136324,1750081845778,-2139.69,0.00016438,2]
[366136325,1750081845788,-3719.03,0.00016438,2]
[366136326,1750081845799,-1709.85,0.00016438,2]
[366136327,1750081845812,-490.0,0.00016438,2]
[366136328,1750081845823,-490.0,0.00016438,2]
[366136329,1750081845834,-8488.88,0.00016438,2]
[366136330,1750081845845,-2306.67,0.00016438,2]
[366136331,1750081845856,-1078.46,0.00016438,2]
[366136332,1750081845866,-490.0,0.00016438,2]
[366136333,1750081845876,-709.52,0.00016438,2]
[366136334,1750081845886,-152.44944783,0.00016438,2]
[366136335,1750081845897,-3183.54,0.00016438,2]
[366136336,1750081845908,-858.08,0.00016438,2]
[366136337,1750081845918,-777.78,0.00016438,2]
[366136338,1750081845928,-150.0,0.00016438,2]
[366136339,1750081845939,-988.79,0.00016438,2]
[366136340,1750081845949,-150.0,0.00016438,2]
[366136341,1750081845960,-6717.79,0.00016438,2]
[366136342,1750081845970,-490.0,0.00016438,2]
[366136343,1750081845980,-490.0,0.00016438,2]
[366136344,1750081845990,-1632.34,0.00016438,2]
[366136345,1750081846001,-490.0,0.00016438,2]
[366136346,1750081846011,-490.0,0.00016438,2]
[366136347,1750081846021,-490.0,0.00016438,2]
[366136348,1750081846032,-490.0,0.00016438,2]
[366136349,1750081846042,-509.58286633,0.00016438,2]
[366136350,1750081846053,-740.85,0.00016438,2]
[366136351,1750081846064,-647.3,0.00016438,2]
[366136352,1750081846074,-633.17,0.00016438,2]
[366136353,1750081846084,-1110.62,0.00016438,2]
[366136354,1750081846094,-3431.34,0.00016438,2]
[366136355,1750081846104,-1613.59,0.00016438,2]
[366136356,1750081846115,-3547.05,0.00016438,2]
[366136357,1750081846125,-4405.29,0.00016438,2]
[366136358,1750081846136,-1225.43,0.00016438,2]
[366136359,1750081846146,-1605.74,0.00016438,2]
[366136360,1750081846158,-2970.16,0.00016438,2]
[366136361,1750081846168,-254.46028321,0.00016438,2]
[366136376,1750081846779,-235.53971679,0.00016438,2]
[366136377,1750081846789,-490.0,0.00016438,2]
[366136378,1750081846798,-490.0,0.00016438,2]
[366136379,1750081846808,-257.7879849,0.00016438,2]
[366136380,1750081846819,-232.2120151,0.00016438,2]
[366136381,1750081846829,-591.44,0.00016438,2]
[366136382,1750081846839,-490.0,0.00016438,2]
[366136383,1750081846848,-1734.89,0.00016438,2]
[366136384,1750081846858,-1081.5,0.00016438,2]
[366136385,1750081846867,-174.52070332,0.00016438,2]
[366136386,1750081846879,-315.47929668,0.00016438,2]
[366136387,1750081846889,-490.0,0.00016438,2]
[366136388,1750081846898,-788.87,0.00016438,2]
[366136389,1750081846908,-871.48,0.00016438,2]
[366136390,1750081846918,-1391.57,0.00016438,2]
[366136391,1750081846927,-490.0,0.00016438,2]
[366136392,1750081846937,-1057.97,0.00016438,2]
[366136393,1750081846947,-1167.53975246,0.00016438,2]
[366136394,1750081846971,-15.16024754,0.00016438,2]
[366136395,1750081846981,-1956.71,0.00016438,2]
[366136396,1750081846990,-791.52,0.00016438,2]
[366136397,1750081846999,-787.35768701,0.00016438,2]
[366136398,1750081848046,-198.60231299,0.00016438,2]
[366136399,1750081848057,-490.0,0.00016438,2]
[366136400,1750081848067,-1695.23,0.00016438,2]
[366136401,1750081848077,-490.0,0.00016438,2]
[366136402,1750081848087,-1632.33,0.00016438,2]
[366136403,1750081848097,-490.0,0.00016438,2]
[366136404,1750081848108,-1575.51532042,0.00016438,2]
[366136405,1750081848151,-3261.46382265,0.00016438,2]
[366136406,1750081848164,-117.34085693,0.00016438,2]
[366136407,1750081848175,-358.67990847,0.00016438,2]
[366136408,1750081848190,-131.32009153,0.00016438,2]
[366136409,1750081848201,-680.57990897,0.00016438,2]
[366136410,1750081848214,-635.716992,0.00016438,2]
[366136411,1750081848227,-179.24309903,0.00016438,2]
[366136412,1750081848238,-476.40690097,0.00016438,2]
[366136413,1750081848251,-13.59309903,0.00016438,2]
[366136414,1750081848261,-844.20690097,0.00016438,2]
[366136415,1750081848274,-153.99309903,0.00016438,2]
[366136416,1750081848285,-362.19213321,0.00016438,2]
[366136417,1750081848297,-127.80786679,0.00016438,2]
[366136418,1750081848308,-823.97,0.00016438,2]
[366136419,1750081848318,-490.0,0.00016438,2]
[366136420,1750081848328,-270.09271344,0.00016438,2]
[366136421,1750081848341,-219.90728656,0.00016438,2]
[366136422,1750081848352,-790.77,0.00016438,2]
[366136423,1750081848363,-771.368373,0.00016438,2]
[366136424,1750081848373,-490.0,0.00016438,2]
[366136425,1750081848383,-2028.7847577,0.00016438,2]
[366136426,1750081848396,-1000.0,0.00016438,2]
[366136427,1750081848413,-14978.1652423,0.00016438,2]
[366136428,1750081848427,-1272.91,0.00016438,2]
[366136429,1750081848439,-1197.07,0.00016438,2]
[366136430,1750081848449,-490.0,0.00016438,2]
[366136431,1750081848460,-711.46,0.00016438,2]
[366136432,1750081848471,-771.368373,0.00016438,2]
[366136433,1750081848482,-2061.23,0.00016438,2]
[366136434,1750081848492,-697.83,0.00016438,2]
[366136435,1750081848504,-2586.06,0.00016438,2]
[366136436,1750081848515,-2558.62,0.00016438,2]
[366136437,1750081848525,-174.261911,0.00016438,2]
[366136438,1750081848536,-500.0,0.00016438,2]
[366136439,1750081848547,-500.0,0.00016438,2]
[366136440,1750081848557,-247.0,0.00016438,2]
[366136441,1750081848567,-717.19,0.00016438,2]
[366136442,1750081848577,-490.0,0.00016438,2]
[366136443,1750081848587,-174.261911,0.00016438,2]
[366136444,1750081848598,-1946.7,0.00016438,2]
[366136445,1750081848609,-878.55,0.00016438,2]
[366136446,1750081848619,-1795.44,0.00016438,2]
[366136447,1750081848629,-151.0,0.00016438,2]
[366136448,1750081848639,-5885.13,0.00016438,2]
[366136449,1750081848650,-490.0,0.00016438,2]
[366136450,1750081848660,-719.14,0.00016438,2]
[366136451,1750081848670,-8120.78,0.00016438,2]
[366136452,1750081848680,-2671.78,0.00016438,2]
[366136453,1750081848690,-876.06,0.00016438,2]
[366136454,1750081848700,-490.0,0.00016438,2]
[366136455,1750081848710,-490.0,0.00016438,2]
[366136456,1750081848720,-490.0,0.00016438,2]
[366136457,1750081848731,-857.43,0.00016438,2]
[366136458,1750081848741,-490.0,0.00016438,2]
[366136459,1750081848750,-1153.36,0.00016438,2]
[366136460,1750081848761,-806.92,0.00016438,2]
[366136461,1750081848771,-2332.14,0.00016438,2]
[366136462,1750081848782,-490.0,0.00016438,2]
[366136463,1750081848792,-1039.12,0.00016438,2]
[366136464,1750081848802,-151.0,0.00016438,2]
[366136465,1750081848813,-1390.65,0.00016438,2]
[366136466,1750081848824,-490.0,0.00016438,2]
[366136467,1750081848835,-499.9,0.00016438,2]
[366136468,1750081848845,-8392.44,0.00016438,2]
[366136469,1750081848855,-676.33,0.00016438,2]
[366136470,1750081848865,-556.7,0.00016438,2]
[366136471,1750081848874,-958.55,0.00016438,2]
[366136472,1750081848884,-1064.47,0.00016438,2]
[366136473,1750081848894,-151.0,0.00016438,2]
[366136474,1750081848904,-1246.26,0.00016438,2]
[366136475,1750081848913,-491.43,0.00016438,2]
[366136476,1750081848924,-343.837838,0.00016438,2]
[366136477,1750081848934,-3170.5,0.00016438,2]
[366136478,1750081848945,-151.0,0.00016438,2]
[366136479,1750081848956,-1035.69,0.00016438,2]
[366136480,1750081848967,-151.0,0.00016438,2]
[366136481,1750081848977,-1132.62,0.00016438,2]
[366136482,1750081848987,-894.37,0.00016438,2]
[366136483,1750081848996,-861.69,0.00016438,2]
[366136484,1750081849006,-343.837838,0.00016438,2]
[366136485,1750081849016,-506.47,0.00016438,2]
[366136486,1750081849026,-490.0,0.00016438,2]
[366136487,1750081849036,-2109.1,0.00016438,2]
[366136488,1750081849046,-2109.1,0.00016438,2]
[366136489,1750081849056,-2109.1,0.00016438,2]
[366136490,1750081849066,-372.44992422,0.00016438,2]
[366136491,1750081849077,-4638.4,0.00016438,2]
[366136492,1750081849087,-793.7,0.00016438,2]
[366136493,1750081849096,-3030.23,0.00016438,2]
[366136494,1750081849106,-760.66,0.00016438,2]
[366136495,1750081849118,-759.56,0.00016438,2]
[366136496,1750081849129,-151.0,0.00016438,2]
[366136497,1750081849139,-490.0,0.00016438,2]
[366136498,1750081849150,-655.14,0.00016438,2]
[366136499,1750081849160,-2704.86,0.00016438,2]
[366136500,1750081849171,-1799.95,0.00016438,2]
[366136501,1750081849181,-991.87,0.00016438,2]
[366136502,1750081849190,-1304.9,0.00016438,2]
[366136503,1750081849200,-490.0,0.00016438,2]
[366136504,1750081849210,-635.20419126,0.00016438,2]
[366136505,1750081849220,-151.0,0.00016438,2]
[366136506,1750081849230,-2391.99,0.00016438,2]
[366136507,1750081849240,-151.0,0.00016438,2]
[366136508,1750081849250,-2459.68,0.00016438,2]
[366136509,1750081849260,-1102.73,0.00016438,2]
[366136510,1750081849270,-1060.75,0.00016438,2]
[366136511,1750081849280,-497.64,0.00016438,2]
[366136512,1750081849290,-564.35,0.00016438,2]
[366136513,1750081849301,-1342.42,0.00016438,2]
[366136514,1750081849311,-490.0,0.00016438,2]
[366136515,1750081849321,-2014.59,0.00016438,2]
[366136516,1750081849331,-642.4,0.00016438,2]
[366136517,1750081849341,-851.67,0.00016438,2]
[366136518,1750081849351,-2361.66,0.00016438,2]
[366136519,1750081849361,-490.0,0.00016438,2]
[366136520,1750081849371,-1159.48,0.00016438,2]
[366136521,1750081849382,-151.656887,0.00016438,2]
[366136522,1750081849391,-151.0,0.00016438,2]
[366136523,1750081849401,-490.0,0.00016438,2]
[366136524,1750081849411,-151.0,0.00016438,2]
[366136525,1750081849421,-15651.79,0.00016438,2]
[366136526,1750081849435,-192.13282865,0.00016438,2]
[366136527,1750081849445,-3140.43,0.00016438,2]
[366136528,1750081849455,-864.23,0.00016438,2]
[366136529,1750081849464,-490.48,0.00016438,2]
[366136530,1750081849474,-1506.76,0.00016438,2]
[366136531,1750081849484,-783.21,0.00016438,2]
[366136532,1750081849494,-18060.95,0.00016438,2]
[366136533,1750081849504,-732.66,0.00016438,2]
[366136534,1750081849514,-490.0,0.00016438,2]
[366136535,1750081849524,-831.63,0.00016438,2]
[366136536,1750081849534,-1616.31,0.00016438,2]
[366136537,1750081849544,-986.89,0.00016438,2]
[366136538,1750081849554,-727.61,0.00016438,2]
[366136539,1750081849564,-400.161435,0.00016438,2]
[366136540,1750081849574,-1178.11,0.00016438,2]
[366136541,1750081849584,-584.69,0.00016438,2]
[366136542,1750081849595,-600.0,0.00016438,2]
[366136543,1750081849604,-150.0,0.00016465,2]
[366136544,1750081849614,-150.0,0.00016465,2]
[366136545,1750081849623,-500.0,0.00016465,2]
[366136546,1750081849633,-200.0,0.00016465,2]
[366136547,1750081849643,-500.0,0.00016465,2]
[366136548,1750081849653,-150.0,0.00016465,2]
[366136549,1750081849662,-150.0,0.00016465,2]
[366136550,1750081849672,-500.0,0.00016465,2]
[366136551,1750081849682,-2109.1,0.00016469,2]
[366136552,1750081849693,-154.574086,0.0001647,2]
[366136553,1750081849703,-151.0,0.0001647,2]
[366136554,1750081849713,-151.0,0.0001647,2]
[366136555,1750081849723,-404.769387,0.0001647,2]
[366136556,1750081849734,-404.769387,0.0001647,2]
[366136557,1750081849745,-151.0,0.0001647,2]
[366136558,1750081849755,-151.0,0.0001647,2]
[366136559,1750081849766,-151.0,0.0001647,2]
[366136560,1750081849776,-151.0,0.0001647,2]
[366136561,1750081849787,-151.0,0.0001647,2]
[366136562,1750081849797,-151.0,0.0001647,2]
[366136563,1750081849808,-151.922812,0.0001647,2]
[366136564,1750081849818,-151.0,0.0001647,2]
[366136565,1750081849828,-292.624328,0.0001647,2]
[366136566,1750081849838,-151.0,0.0001647,2]
[366136567,1750081849848,-292.624328,0.0001647,2]
[366136568,1750081849858,-151.0,0.0001647,2]
[366136569,1750081849868,-151.0,0.0001647,2]
[366136570,1750081849878,-151.0,0.0001647,2]
[366136571,1750081849888,-151.0,0.0001647,2]
[366136572,1750081849898,-263.283404,0.0001647,2]
[366136573,1750081849908,-263.283404,0.0001647,2]
[366136574,1750081849918,-151.0,0.0001647,2]
[366136575,1750081850041,-151.0,0.0001647,2]
[366136576,1750081850051,-334.436761,0.0001647,2]
[366136577,1750081850061,-334.436761,0.0001647,2]
[366136578,1750081850070,-707.498861,0.0001647,2]
[366136579,1750081850079,-179.944934,0.0001647,2]
[366136580,1750081850089,-707.498861,0.0001647,2]
[366136581,1750081850099,-179.944934,0.0001647,2]
[366136582,1750081850109,-75449.6,0.0001647,2]
[366136583,1750081850118,-150.0,0.00016493,2]
[366136584,1750081850129,-250.60586234,0.00016493,2]
[366136585,1750081850138,-205.71163978,0.00016493,2]
[366136586,1750081850147,-150.0,0.00016493,2]
[366136587,1750081850157,-150.0,0.00016493,2]
[366136588,1750081850168,-500.0,0.00016493,2]
[366136589,1750081850177,-300.0,0.000165,2]
[366136590,1750081850186,-160.14,0.000165,2]
[366136591,1750081850197,-424.38667617,0.00016502,2]
[366136592,1750081850207,-229.63902906,0.00016502,2]
[366136593,1750081850216,-200.0,0.0001652,2]
[366136594,1750081850226,-500.0,0.0001652,2]
[366136595,1750081850235,-833.8156298,0.0001652,2]
[366136596,1750081850245,-4016.8744531,0.00016531,2]
[366136597,1750081850255,-2000.0,0.00016566,2]
[366136598,1750081850265,-500.0,0.00016566,2]
[366136599,1750081850275,-424.38667616,0.00016568,2]
[366136600,1750081850285,-4016.8744531,0.00016585,2]
[366136601,1750081850294,-151.0,0.00016596,2]
[366136602,1750081850304,-151.0,0.00016596,2]
[366136603,1750081850314,-151.0,0.00016596,2]
[366136604,1750081850324,-151.0,0.00016596,2]
[366136605,1750081850333,-151.0,0.00016596,2]
[366136606,1750081850343,-151.0,0.00016596,2]
[366136607,1750081850351,-562.337866,0.00016596,2]
[366136608,1750081850361,-562.337866,0.00016596,2]
[366136609,1750081850370,-181.4582443,0.00016596,2]
[366136610,1750081850380,-151.0,0.00016596,2]
[366136611,1750081850390,-157.606675,0.00016596,2]
[366136612,1750081850400,-70931.997,0.00016596,2]
[366136613,1750081850409,-193.242144,0.00016596,2]
[366136614,1750081850419,-193.242144,0.00016596,2]
[366136615,1750081850432,-153.260645,0.00016596,2]
[366136616,1750081850445,-151.0,0.00016596,2]
[366136617,1750081850455,-38858.8585908,0.00016596,2]
[366136618,1750081850464,-404.769387,0.00016596,2]
[366136619,1750081850474,-404.769387,0.00016596,2]
[366136620,1750081850484,-3249.7440278,0.00016596,2]
[366136621,1750081850494,-471.563809,0.00016596,2]
[366136622,1750081850503,-471.563809,0.00016596,2]
[366136623,1750081850514,-151.0,0.00016596,2]
[366136624,1750081850523,-151.0,0.00016596,2]
[366136625,1750081850534,-443.397042,0.00016596,2]
[366136626,1750081850543,-443.397042,0.00016596,2]
[366136627,1750081850553,-292.624328,0.00016596,2]
[366136628,1750081850563,-292.624328,0.00016596,2]
[366136629,1750081850573,-26417.3210183,0.00016596,2]
[366136630,1750081850583,-10747.7527679,0.00016596,2]
[366136631,1750081850593,-151.0,0.00016596,2]
[366136632,1750081850603,-771.368373,0.00016596,2]
[366136633,1750081850612,-771.368373,0.00016596,2]
[366136634,1750081850623,-174.261911,0.00016596,2]
[366136635,1750081850632,-174.261911,0.00016596,2]
[366136636,1750081850642,-206.536721,0.00016596,2]
[366136637,1750081850652,-151.0,0.00016596,2]
[366136638,1750081850662,-151.0,0.00016596,2]
[366136639,1750081850672,-343.837838,0.00016596,2]
[366136640,1750081850681,-151.0,0.00016596,2]
[366136641,1750081850692,-343.837838,0.00016596,2]
[366136642,1750081850701,-151.0,0.00016596,2]
[366136643,1750081850711,-400.161435,0.00016596,2]
[366136644,1750081850721,-1135.0,0.000166,2]
[366136645,1750081850731,-2109.1,0.00016601,2]
[366136646,1750081850740,-2109.1,0.00016601,2]
[366136647,1750081850751,-2109.1,0.00016601,2]
[366136648,1750081850760,-229.63902902,0.00016602,2]
[366136649,1750081850769,-301.97,0.00016602,2]
[366136650,1750081850779,-222.629029,0.00016602,2]
[366136651,1750081850788,-222.629029,0.00016602,2]
[366136652,1750081850798,-151.0,0.00016602,2]
[366136653,1750081850807,-153.39334,0.00016602,2]
[366136654,1750081850817,-151.0,0.00016602,2]
[366136655,1750081850827,-151.0,0.00016602,2]
[366136656,1750081850837,-158.075151,0.00016602,2]
[366136657,1750081850846,-151.0,0.00016602,2]
[366136658,1750081850855,-151.0,0.00016602,2]
[366136659,1750081850865,-151.0,0.00016602,2]
[366136660,1750081850874,-155.068206,0.00016602,2]
[366136661,1750081850884,-151.0,0.00016602,2]
[366136662,1750081850894,-155.068206,0.00016602,2]
[366136663,1750081850904,-151.0,0.00016602,2]
[366136664,1750081850913,-802.650951,0.00016602,2]
[366136665,1750081850924,-151.0,0.00016602,2]
[366136666,1750081850933,-802.650951,0.00016602,2]
[366136667,1750081850945,-160.98239,0.00016602,2]
[366136668,1750081850955,-160.98239,0.00016602,2]
[366136669,1750081850964,-248.136437,0.00016602,2]
[366136670,1750081850974,-151.487009,0.00016602,2]
[366136671,1750081850983,-248.136437,0.00016602,2]
[366136672,1750081850993,-291.565943,0.00016602,2]
[366136673,1750081851003,-151.0,0.00016602,2]
[366136674,1750081851012,-151.0,0.00016602,2]
[366136675,1750081851022,-151.0,0.00016602,2]
[366136676,1750081851032,-228.283542,0.00016602,2]